Cogmind - Beta 12 @@@ ROGUE MODE // 2023.10.22 @ 23:24:27 Player: kicktown Result: Destroyed by P-60 Hacker with Shock Rifle Performance ------------- Evolutions (3) 1500 Regions Visited (6) 1200 Robots Destroyed (13) 65 Value Destroyed (452) 452 Prototype IDs (4) 80 Alien Tech Used (0) 0 Bonus (0) 0 TOTAL SCORE: 3297 Bonus ------- None Cogmind --------- Core Integrity 0/700 Matter 292/300 Energy 120/140 System Corruption 2% Temperature Cool (0) Movement Core (100) Ox1 Location -7/Factory Parts ------- > --- POWER (1) -------- Light Deuterium Engine > --- PROPULSION (5) --- (None) > --- UTILITY (5) ------ Visual Processing Unit > --- WEAPON (2) ------- (None) > --- INVENTORY (5) ---- (None) Peak State ------------ > --- POWER ------------ Angular Momentum Engine > --- PROPULSION ------- Medium Treads Medium Treads Improved Carbon-fiber Leg Aerolev Unit > --- UTILITY ---------- Advanced Heat Sink Medium Matter Pod Targeting Computer Matter Filter Long-range Tractor Beam > --- WEAPON ----------- Advanced Assault Cannon Advanced Assault Cannon > --- INVENTORY -------- Flexi-carbon Leg Bomb Drone Bay Advanced Beam Rifle [Rating: 45] Favorites ----------- Power Light Ion Engine Engine Light Ion Engine Power Core Light Nuclear Core Propulsion Hover Unit Treads Medium Treads Leg Improved Carbon-fiber Leg Hover Unit Hover Unit Utility Medium Matter Pod Device Tractor Beam Storage Medium Matter Pod Processor Targeting Computer Weapon Mining Claw Energy Gun Advanced Beam Rifle Ballistic Gun Light Assault Rifle Ballistic Cannon Advanced Assault Cannon Launcher Grenade Launcher Slashing Weapon Mining Claw Special Melee Weapon Datajack Build | -11 -10 -10 -10 -9 -8 -7 ------- Run | Jun Mat Min Exi Min Mat Fac Slots Evolved 6 | . . . . . 4 2 Power . | . . . . . . . Propulsion 3 | . . . . . 3 . Utility 3 | . . . . . 1 2 Weapon . | . . . . . . . Parts Attached 50 | 2 6 9 . . 7 26 Power 9 | 1 1 2 . . 1 4 Engine 8 | 1 1 2 . . 1 3 Core 1 | . . . . . . 1 Reactor . | . . . . . . . Propulsion 13 | . 2 . . . 1 10 Treads 2 | . . . . . . 2 Leg 6 | . . . . . . 6 Wheel . | . . . . . . . Hover 5 | . 2 . . . 1 2 Flight . | . . . . . . . Utility 15 | . 2 5 . . 3 5 Device 8 | . 1 2 . . 1 4 Storage 5 | . 1 3 . . 1 . Processor 2 | . . . . . 1 1 Hackware . | . . . . . . . Protection . | . . . . . . . Artifact . | . . . . . . . Weapon 13 | 1 1 2 . . 2 7 Energy Gun 3 | . . . . . 1 2 Energy Cannon . | . . . . . . . Ballistic Gun 1 | 1 . . . . . . Ballistic Cannon 5 | . . . . . . 5 Launcher 2 | . 1 1 . . . . Special Weapon . | . . . . . . . Impact Weapon . | . . . . . . . Slashing Weapon 1 | . . 1 . . . . Piercing Weapon . | . . . . . . . Special Melee Weapon 1 | . . . . . 1 . Unidentified Prototypes 4 | . . 1 . . 2 1 Parts Lost 33 | . . . . 1 7 25 Power 5 | . . . . . 2 3 Propulsion 12 | . . . . . 2 10 Utility 8 | . . . . . 1 7 Weapon 8 | . . . . 1 2 5 Highest Loss Streak 11 | . . . . 1 5 11 To Critical Strikes . | . . . . . . . Average Slot Usage (%) 68 | . 82 95 100 94 55 49 Engine 7 | . 11 14 14 14 7 1 Treads 1 | . . . . . . 2 Leg 4 | . . . . . . 11 Hover 14 | . 28 28 28 28 9 4 Device 11 | . 12 14 14 14 12 8 Storage 7 | . 2 9 14 14 3 6 Processor 3 | . . . . . 8 4 Energy Gun 2 | . . . . . 8 2 Ballistic Gun 1 | . 14 . . . . . Ballistic Cannon 2 | . . . . . . 4 Launcher 5 | . 12 14 14 8 . . Slashing Weapon 5 | . . 14 14 14 5 . Naked Turns . | . . . . . . . Heaviest Build 32 | 4 10 16 11 11 13 32 Greatest Support 56 | 3 12 12 12 12 12 56 Greatest Overweight (x) 4 | 1 . 1 . . 4 4 Average Overweight (x) . | . . . . . . . Largest Inventory Capacity 5 | 5 5 5 5 5 5 5 Average Capacity 5 | 5 5 5 5 5 5 5 Most Carried 5 | . 2 5 5 5 5 5 Average Carried 3 | . . 4 5 5 3 2 Final Capacity 5 | 5 5 5 5 5 5 5 Final Carried 5 | . 2 5 5 5 2 . Class Distribution -------------------- 80% | Mutant 19% | Scavenger-Mutant Dominant Class ---------------- Mutant | -10/Materials Mutant | -10/Mines Mutant | -10/Exiles Mutant | -9/Mines Mutant | -8/Materials Mutant | -7/Factory Resources | -11 -10 -10 -10 -9 -8 -7 ----------- Run | Jun Mat Min Exi Min Mat Fac Matter Collected 871 | 117 41 211 . 11 241 250 Remotely 562 | . 41 211 . . 241 69 Salvage Created 345 | . 49 . . 11 221 64 Parts 19 | . 5 . . 3 6 5 Haulers Intercepted . | . . . . . . . Recyclers Shooed 1 | . . . . . . 1 Parts Field Recycled . | . . . . . . . Retrieved Matter . | . . . . . . . Parts Self-Destructed . | . . . . . . . Prevented . | . . . . . . . Kills | -11 -10 -10 -10 -9 -8 -7 ------- Run | Jun Mat Min Exi Min Mat Fac Combat Hostiles Destroyed 10 | . 5 . . . 2 3 Guns 2 | . . . . . 2 . Cannons 3 | . . . . . . 3 AOE 5 | . 5 . . . . . Classes Destroyed 6 | . 2 . . 1 2 1 Tunneler 1 | . . . . 1 . . Recycler 1 | . . . . . 1 . Operator 1 | . . . . . 1 . Swarmer 3 | . 3 . . . . . Grunt 4 | . 2 . . . 2 . Specialist 3 | . . . . . . 3 Best Kill Streak 3 | . 3 . . 1 3 2 Combat Bots Only 3 | . 3 . . . 2 2 Max Kills in Single Turn 2 | . 2 . . 1 1 1 Gunslinging . | . . . . . . . Exploded 2 | . 2 . . . . . Melee . | . . . . . . . Uniques/NPCs Destroyed . | . . . . . . . Combat | -11 -10 -10 -10 -9 -8 -7 -------- Run | Jun Mat Min Exi Min Mat Fac Damage Taken 3632 | . 146 47 . 19 564 2856 Core 935 | . 29 18 . . 178 710 Absorbed by Shields . | . . . . . . . Core Remaining (%) 82 | 100 . . . 81 67 . Volleys Fired 52 | . 12 . . . 18 22 Largest 2 | . 1 . . . 1 2 Hottest 96 | . 30 . . . 61 96 Shots Fired 58 | . 12 . . . 18 28 Gun 18 | . . . . . 18 . Cannon 28 | . . . . . . 28 Launcher 12 | . 12 . . . . . Special . | . . . . . . . Kinetic 28 | . . . . . . 28 Thermal 18 | . . . . . 18 . Explosive 12 | . 12 . . . . . Electromagnetic . | . . . . . . . Robot Hit Streak 18 | . 1 . . . 16 18 Robot Miss Streak 3 | . 1 . . . . 3 Penetration Max . | . . . . . . . Secondary Targets . | . . . . . . . Shots Hit Robots 43 | . 2 . . 2 19 20 Core Hits 28 | . 11 . . 1 8 8 Critical Kills . | . . . . . . . Critical Parts Destroyed . | . . . . . . . Critical Strikes 3 | . . . . . 2 1 Burn 2 | . . . . . 2 . Blast 1 | . . . . . . 1 Melee Attacks 24 | . . . . 4 20 . Impact . | . . . . . . . Slashing 24 | . . . . 4 20 . Piercing . | . . . . . . . Sneak Attacks 2 | . . . . 2 . . Combat Hostiles . | . . . . . . . Follow-up Attacks . | . . . . . . . Damage Inflicted 1358 | . 285 . . 114 401 558 Guns 300 | . . . . . 300 . Cannons 496 | . . . . . . 496 Explosions 285 | . 285 . . . . . Melee 188 | . . . . 98 90 . Ramming 89 | . . . . 16 11 62 Kinetic 496 | . . . . . . 496 Thermal 300 | . . . . . 300 . Explosive 285 | . 285 . . . . . Electromagnetic . | . . . . . . . Impact . | . . . . . . . Slashing 188 | . . . . 98 90 . Piercing . | . . . . . . . Highest Corruption 3 | . . . . 3 . 1 Average Corruption 2 | . . . . 3 . 1 Corruption Purged . | . . . . . . . Corruption Blocked . | . . . . . . . Effects 1 | . . . . 1 . . Matter Fused 1 | . . . . 1 . . Overload Shots . | . . . . . . . Overflow Damage 9 | . . . . 9 . . Projectiles . | . . . . . . . Explosions . | . . . . . . . Melee 9 | . . . . 9 . . Knockbacks 6 | . . . . 1 . 5 Impact 2 | . . . . 1 . 1 Kinetic 4 | . . . . . . 4 Secondary . | . . . . . . . Self-Inflicted Damage 50 | . 15 . . 8 5 22 Shots 2 | . 2 . . . . . Rammed 20 | . . . . 1 4 15 Targets Rammed 20 | . . . . 1 4 15 Kicked . | . . . . . . . Crushed . | . . . . . . . Highest Temperature 102 | . 18 . . . 102 26 Average Temperature 28 | . 8 . . . 44 10 Received Heat Transfer 729 | . 48 9 . 6 315 351 Siege Activations . | . . . . . . . Robots Corrupted . | . . . . . . . Combat Hostiles . | . . . . . . . Parts Fried . | . . . . . . . Impact Corruptions . | . . . . . . . Robots Melted . | . . . . . . . Combat Hostiles . | . . . . . . . Parts Melted 1 | . . . . . 1 . Heat Transferred 703 | . . . . . 703 . Parts Sabotaged . | . . . . . . . Parts Stolen . | . . . . . . . Parts Stripped . | . . . . . . . Power Chain Reactions . | . . . . . . . Missiles Intercepted . | . . . . . . . Alert | -11 -10 -10 -10 -9 -8 -7 ------- Run | Jun Mat Min Exi Min Mat Fac Peak Influence 226 | . 226 87 . 35 81 100 Initial 87 | . . 87 . . 13 34 Average 38 | . 88 87 . 4 40 24 Maximum Alert Level 1 | . 1 . . . . . Low Security (%) 97 | 100 76 100 . 100 100 100 Level 1 2 | . 23 . . . . . Level 2 . | . . . . . . . Level 3 . | . . . . . . . Level 4 . | . . . . . . . Level 5 . | . . . . . . . High Security . | . . . . . . . Max Security . | . . . . . . . Squads Dispatched 7 | . . . . . 1 6 Investigation . | . . . . . . . Extermination 1 | . . . . . . 1 Reinforcement 6 | . . . . . 1 5 Assault . | . . . . . . . Garrison . | . . . . . . . Intercept . | . . . . . . . Searches Triggered . | . . . . . . . Construction Impeded . | . . . . . . . Haulers Reinforced . | . . . . . . . Active Scanning Responses . | . . . . . . . Cargo Convoy Interrupts . | . . . . . . . Stealth | -11 -10 -10 -10 -9 -8 -7 --------- Run | Jun Mat Min Exi Min Mat Fac Distress Signals 1 | . 1 . . . . . Communications Jammed . | . . . . . . . Distress Signals . | . . . . . . . Times Spotted 49 | . 7 2 . 4 10 26 Peak Tracking Total 8 | . 5 2 . 3 4 8 Tactical Retreats 8 | . . . . 2 2 4 Traps | -11 -10 -10 -10 -9 -8 -7 ------- Run | Jun Mat Min Exi Min Mat Fac Traps Triggered 1 | . . . . . . 1 Indirectly . | . . . . . . . Trap Hack Attempts . | . . . . . . . Triggered . | . . . . . . . Disarmed . | . . . . . . . Reprogrammed . | . . . . . . . Reused . | . . . . . . . Traps Extracted . | . . . . . . . Installed . | . . . . . . . Triggered . | . . . . . . . Machines | -11 -10 -10 -10 -9 -8 -7 ---------- Run | Jun Mat Min Exi Min Mat Fac Machines Disabled 3 | . 2 . . . 1 . Max in Single Turn 1 | . 1 . . . 1 . Machines Repaired . | . . . . . . . Machines Sabotaged . | . . . . . . . Overloaded Fab Kills . | . . . . . . . Hacking | -11 -10 -10 -10 -9 -8 -7 --------- Run | Jun Mat Min Exi Min Mat Fac Machines Accessed 8 | . . 1 . . 2 5 Terminals 7 | . . . . . 2 5 Fabricators . | . . . . . . . Repair Stations . | . . . . . . . Recycling Units . | . . . . . . . Scanalyzers . | . . . . . . . Garrison Access . | . . . . . . . Total Hacks 8 | . . 1 . . 2 5 Successful 3 | . . 1 . . 1 1 Failed 5 | . . . . . 1 4 Catastrophic 1 | . . . . . . 1 Database Lockouts . | . . . . . . . Manual 7 | . . . . . 2 5 Terminals 7 | . . . . . 2 5 Fabricators . | . . . . . . . Repair Stations . | . . . . . . . Recycling Units . | . . . . . . . Scanalyzers . | . . . . . . . Garrison Access . | . . . . . . . Terminal Hacks 3 | . . 1 . . 1 1 Open Door 1 | . . 1 . . . . Unreport Threat 2 | . . . . . 1 1 Fabricator Hacks . | . . . . . . . Repair Station Hacks . | . . . . . . . Recycling Unit Hacks . | . . . . . . . Scanalyzer . | . . . . . . . Garrison Access Hacks . | . . . . . . . Unauthorized Hacks . | . . . . . . . Terminals . | . . . . . . . Fabricators . | . . . . . . . Repair Stations . | . . . . . . . Recycling Units . | . . . . . . . Scanalyzers . | . . . . . . . Garrison Access . | . . . . . . . Data Cores Recovered 1 | . . . . . . 1 Used . | . . . . . . . Hacking Detections 2 | . . . . . . 2 Full Trace Events . | . . . . . . . Feedback Events . | . . . . . . . Feedback Blocked . | . . . . . . . Robot Schematics Acquired . | . . . . . . . Robots Built . | . . . . . . . Authchips . | . . . . . . . Time . | . . . . . . . Total Robot Build Rating . | . . . . . . . Part Schematics Acquired . | . . . . . . . Parts Built . | . . . . . . . Authchips . | . . . . . . . Time . | . . . . . . . Total Part Build Rating . | . . . . . . . Parts Repaired . | . . . . . . . Time . | . . . . . . . Parts Recycled . | . . . . . . . Recycled Matter . | . . . . . . . Retrieved Matter . | . . . . . . . Retrieved Components . | . . . . . . . Parts Scanalyzed . | . . . . . . . Part Schematics Acquired . | . . . . . . . Parts Damaged . | . . . . . . . Bothacking | -11 -10 -10 -10 -9 -8 -7 ------------ Run | Jun Mat Min Exi Min Mat Fac Used RIF Installer . | . . . . . . . Robots Hacked . | . . . . . . . Non-combat . | . . . . . . . Combat . | . . . . . . . Robot Hacks Applied . | . . . . . . . Relay Couplers Released . | . . . . . . . Fabnet Peak Effective % . | . . . . . . . Robots Rewired . | . . . . . . . Allies Hacked . | . . . . . . . Hacks Repelled . | . . . . . . . Allies | -11 -10 -10 -10 -9 -8 -7 -------- Run | Jun Mat Min Exi Min Mat Fac Total Allies . | . . . . . . . Largest Group . | . . . . . . . Highest-Rated Group . | . . . . . . . Highest-Rated Ally . | . . . . . . . Total Orders . | . . . . . . . Ally Attacks 12 | . . . . . . 12 Total Damage . | . . . . . . . Kills . | . . . . . . . Allies Corrupted . | . . . . . . . Allies Melted . | . . . . . . . Intel | -11 -10 -10 -10 -9 -8 -7 ------- Run | Jun Mat Min Exi Min Mat Fac Robot Analysis Total . | . . . . . . . Derelict Logs Recovered 1 | . . 1 . . . . Drone Launches 12 | . . . . . . 12 Drone Recoveries . | . . . . . . . Exploration | -11 -10 -10 -10 -9 -8 -7 ------------- Run | Jun Mat Min Exi Min Mat Fac Turns Passed 1643 | 20 133 166 249 129 236 710 Spaces Moved 1634 | 21 120 210 445 150 160 528 Core 133 | 21 7 . . . 27 78 Treads 44 | . . . . . . 44 Legs 264 | . . . . . . 264 Wheels . | . . . . . . . Hover 1193 | . 113 210 445 150 133 142 Flight . | . . . . . . . Fastest Speed 50 | 50 50 56 56 56 50 50 Average Speed 74 | 85 55 67 56 56 73 103 Slowest Speed 250 | 100 60 116 56 56 250 250 Overloaded Moves . | . . . . . . . Propulsion Burnouts . | . . . . . . . Robots Hopped . | . . . . . . . Cave-ins Triggered . | . . . . . . . Exploration Rate (%) 30 | 3 23 42 89 29 18 10 Regions Visited 6 Branch Regions 3 Pre-discovered Areas . | . . . . . . . Known Exits Taken . | . . . . . . . Unknown Exits Taken 6 | 1 1 1 1 1 1 . Scrap Searched 1 | . . 1 . . . . Spaces Dug 24 | . 13 . . . 11 . Terrain Destroyed 56 | . 44 . . . 11 1 Melee 11 | . . . . . 11 . Projectile 1 | . . . . . . 1 AOE 44 | . 44 . . . . . Terrain Rammed . | . . . . . . . Walls Destroyed . | . . . . . . . Machines Disabled . | . . . . . . . Actions | -11 -10 -10 -10 -9 -8 -7 --------- Run | Jun Mat Min Exi Min Mat Fac Total 1933 | 22 171 235 444 186 217 658 Wait 131 | . 31 4 . 32 7 57 Move 1628 | 20 119 209 444 149 159 528 Hop . | . . . . . . . Pick Up 13 | . 2 4 . . 1 6 Fast Attach 29 | 2 5 3 . . 3 16 Attach 16 | . 1 2 . . 4 9 Detach 5 | . 1 2 . . . 2 Swap 5 | . . 4 . . . 1 Drop 10 | . . 7 . . 1 2 Fire 52 | . 12 . . . 18 22 Melee 24 | . . . . 4 20 . Ram 18 | . . . . 1 4 13 Kick . | . . . . . . . Crush 2 | . . . . . . 2 Escape Stasis . | . . . . . . . Rewire . | . . . . . . . Trap . | . . . . . . . Miscellaneous . | . . . . . . . Route ------- -11/Junkyard -10/Materials -10/Mines (discovered 3 exits: [*Mat x2] / *Exi) -10/Exiles (discovered 2 exits: [*Min x2]) -9/Mines -8/Materials (discovered 2 exits: *Fac / Sto) -7/Factory History --------- Turn | Location | Event 2 | -11/Junkyard | Discovered new exit (range 16) 21 | -11/Junkyard | Entered Materials 129 | -10/Materials | Discovered new exit (range 12) 154 | -10/Materials | Entered Mines 155 | -10/Mines | Assembled infested the area 160 | -10/Mines | Assisted by a Guerilla fighting off Assembled 165 | -10/Mines | Discovered new exit (range 14) 180 | -10/Mines | Joined a pair of Derelicts in attacking an 0b10 outpost 230 | -10/Mines | Discovered new exit (range 14) 259 | -10/Mines | Found the Drone Emporium 263 | -10/Mines | Found Prototype Device 263 | -10/Mines | Identified Bomb Drone Bay 303 | -10/Mines | Build established: Mutant 318 | -10/Mines | Deemed a non-threat by the Exiles lab entrance 318 | -10/Mines | Discovered new exit (range 5) 320 | -10/Mines | Entered Exiles 331 | -10/Exiles | Discovered new exit (range 14) 341 | -10/Exiles | Met 8R-AWN 350 | -10/Exiles | Met EX-HEX 368 | -10/Exiles | Met EX-BIN 425 | -10/Exiles | Met EX-DEC 465 | -10/Exiles | Visited The Gauntlet 561 | -10/Exiles | Discovered new exit (range 14) 569 | -10/Exiles | Entered Mines 691 | -9/Mines | Discovered new exit (range 7) 698 | -9/Mines | Entered Materials 698 | -8/Materials | Evolved 4 slots: Propulsion x3, Utility x1 699 | -8/Materials | Identified exit to Storage 871 | -8/Materials | Lost 5 parts (1p2n1u1w) 926 | -8/Materials | Discovered new exit (range 15) 934 | -8/Materials | Entered Factory 934 | -7/Factory | Evolved 2 slots: Utility x2 1158 | -7/Factory | Lost 7 parts (3n3u1w) 1201 | -7/Factory | Lost 3 parts (1p1u1w) 1593 | -7/Factory | Core integrity fell below 50% 1623 | -7/Factory | Core integrity fell below 20% 1625 | -7/Factory | Lost 11 parts (2p5n2u2w) 1644 | -7/Factory | Destroyed by P-60 Hacker with Shock Rifle Last Messages --------------- 01599_ A bubble of electromagnetic force engulfs the area. 01599_ Pressure Siphon disabled. 01599_ Proton Bomb Trap short circuited. 01599_ A bubble of electromagnetic force engulfs the area. 01599_ Proton Bomb Trap short circuited. 01599_ A bubble of electromagnetic force engulfs the area. 01602_ Connecting with Terminal... >>Alert(Purge) No threats on record. 01609_ Slammed into K-01 Serf. 01616_ Slammed into G-47 Trooper. 01617_ Destabilizing: System interference. 01617_ Visual Processing Unit temporarily disabled. 01618_ Slammed into G-47 Trooper. 01619_ Slammed into G-50 Soldier. 01628_ Critical hit (Burn: +37). 01634_ Connecting with Terminal... 01644_ Slammed into P-60 Hacker. 01644_ Visual Processing Unit broken. 01644_ Destabilizing: Short circuit. Map ----- +----------------------------------------------------+ | | | | | | | | | | | | | | | | | | | ?????????????????????????????????????????????????? | | ?????????????????############????????????????????? | | ?????????????????? #????????###########?? | | ???????????????????""""" ! ########## #?? | | ???????????????????""""" + # """ #?? | | ????????????????? """""" ""# # ""R" #?? | | ????????????????# """""" T"# # "" " #?? | | ????????????????# ""# # #?? | | ????????????????# + # ??? | | ????????????????############# # ????? | | ?????????????????# ! ## #[ ??????? | | ?????????????????# [ # ###"##??????? | | ?????????????????# # ######## | | ?????????????????# """ """ + %%%%%%%% | | ?????????????????# """ """ # """ """ %######## | | ?????????????????# """ """ # """ """ #??????? | | ?????????????????# @p# """ """ [ #??????? | | ?????????????????# # ?????? | | ?????????????????########### ????? | | ???????????????????????????# ???? | | ??????????????????????????? ??? | | ??????????????????????????? ########### ?? | | ??????????????????????????? #?????????? #? | | ??????????????????????????? +?????????? #? | | ??????????????????????????? #?????????? ?? | | ??????????????????????????? ??????????? ??? | | ??????????????????????????? ??????????? ?????? | | ???????????????????????????###???????????##??????? | | ?????????????????????????????????????????????????? | | ?????????????????????????????????????????????????? | | ?????????????????????????????????????????????????? | | ?????????????????????????????????????????????????? | | ?????????????????????????????????????????????????? | | ?????????????????????????????????????????????????? | | ?????????????????????????????????????????????????? | | ?????????????????????????????????????????????????? | | ?????????????????????????????????????????????????? | | ?????????????????????????????????????????????????? | | ?????????????????????????????????????????????????? | | ?????????????????????????????????????????????????? | | ?????????????????????????????????????????????????? | +----------------------------------------------------+ Best States ------------- Heat Dissipation 53 Energy Generation 18 Energy Capacity 300 Matter Stores 400 Matter Capacity 500 Sight Range 18 Terrain Scan Density 10 Evasion (%) 55 Targeting Accuracy 5 Recoil Reduction 2 Matter Filtering 30 Item Schematics ----------------- None Robot Schematics ------------------ None Fabricated ------------ Nothing Alien Tech Used ----------------- None Achievements -------------- None Challenges ------------ None Game ------ Seed AlloyMyomerNanovents Manual? 0 Play Time 00:31:26 Cumulative 59.9 hours Start 2023.10.22 @ 22:52:43 End 2023.10.22 @ 23:24:27 Sessions 1 Manual Loads 0 Difficulty Rogue Special Mode None Game No. 53 Rogue 53 Adventurer 0 Explorer 0 Win Type - Total 0 Types 0/0/0/0/0/0/0/0/0 Lore% 28 Gallery% 46 Achievement% 33 Wizard Run 0 Options --------- ASCII 0 Keyboard 0 Movement Mouse Keybinds 0 Fullscreen 2 Font 18/TerminusBold Map View 76x50 Tactical HUD 1 Map Filters NONE Filters NONE Steam 1 RUN: 43ab3da5-807f-4db4-bd35-d09b45e96550